Cogmind - Beta 15 @@@ ROGUE MODE // 2025.05.17 @ 21:09:46 Player: Cess183 Result: Destroyed by S-10 Pest with Light Assault Rifle Performance ------------- Evolutions (0) 0 Regions Visited (4) 800 Robots Destroyed (15) 75 Value Destroyed (428) 428 Prototype IDs (0) 0 Alien Tech Used (0) 0 Bonus (-10) -10 TOTAL SCORE: 1293 Bonus ------- Friendly Fire -10 Cogmind --------- Core Integrity 0/250 Matter 47/300 Energy 160/160 System Corruption 1% Temperature Cool (0) Movement Rolling (110) Ox2 Location -9/Mines Parts ------- > --- POWER (1) -------- Light Nuclear Core > --- PROPULSION (2) --- Wheel Wheel > --- UTILITY (2) ------ High-capacity Storage Unit Signal Interpreter > --- WEAPON (2) ------- Improved Light Cannon Makeshift Hammer > --- INVENTORY (20) --- Light Ion Engine Micro Nuclear Core Light Treads Improved Heat Sink High-capacity Matter Pod (200) Makeshift Sensor Array Improved Terrain Scanner Seismic Detector Targeting Computer Improved Targeting Computer Improved Targeting Computer Improved Targeting Computer Improved Light Cannon Improved Light Cannon Peak State ------------ > --- POWER ------------ Light Nuclear Core > --- PROPULSION ------- Wheel Wheel > --- UTILITY ---------- High-capacity Storage Unit Signal Interpreter > --- WEAPON ----------- Improved Light Cannon Makeshift Hammer > --- INVENTORY -------- Micro Nuclear Core Light Treads Improved Heat Sink High-capacity Matter Pod Makeshift Sensor Array Improved Terrain Scanner Seismic Detector Targeting Computer Improved Targeting Computer Improved Targeting Computer Improved Targeting Computer Improved Light Cannon Improved Light Cannon [Rating: 16] Favorites ----------- Power Ion Engine Engine Ion Engine Power Core Light Nuclear Core Propulsion Light Treads Treads Light Treads Wheel Wheel Utility High-capacity Storage Unit Device Seismic Detector Storage High-capacity Storage Unit Processor Signal Interpreter Weapon Improved Light Cannon Energy Gun Medium Laser Ballistic Cannon Improved Light Cannon Launcher Rocket Launcher Special Weapon Welding Torch Impact Weapon Makeshift Hammer Build | -11 -10 -10 -10 -9 ------- Run | Yrd Mat Min Exi Min Slots Evolved . | . . . . . Power . | . . . . . Propulsion . | . . . . . Utility . | . . . . . Weapon . | . . . . . Parts Attached 24 | 7 2 3 1 11 Power 4 | 1 . . 1 2 Engine 3 | 1 . . 1 1 Core 1 | . . . . 1 Reactor . | . . . . . Propulsion 5 | 2 . . . 3 Treads 3 | 2 . . . 1 Leg . | . . . . . Wheel 2 | . . . . 2 Hover . | . . . . . Flight . | . . . . . Utility 4 | 2 2 . . . Device 1 | 1 . . . . Storage 2 | 1 1 . . . Processor 1 | . 1 . . . Hackware . | . . . . . Protection . | . . . . . Artifact . | . . . . . Weapon 11 | 2 . 3 . 6 Energy Gun 2 | 2 . . . . Energy Cannon . | . . . . . Ballistic Gun . | . . . . . Ballistic Cannon 3 | . . 1 . 2 Launcher 4 | . . 1 . 3 Special Weapon 1 | . . 1 . . Impact Weapon 1 | . . . . 1 Slashing Weapon . | . . . . . Piercing Weapon . | . . . . . Special Melee Weapon . | . . . . . Unidentified Prototypes . | . . . . . Parts Lost 9 | . . . . 9 Power 2 | . . . . 2 Propulsion 2 | . . . . 2 Utility . | . . . . . Weapon 5 | . . . . 5 Highest Loss Streak 7 | . . . . 7 To Critical Strikes . | . . . . . Average Backups 16 | 2 7 17 18 16 Power 2 | . 1 2 3 2 Propulsion . | . . . 1 . Utility 7 | . 4 7 8 9 Weapon 5 | . 2 6 6 4 Tool/Special . | . . . . . Unused Backups 13 | . . 2 1 10 Power 1 | . . . . 1 Propulsion . | . . . . . Utility 10 | . . 1 1 8 Weapon 2 | . . 1 . 1 Tool/Special . | . . . . . Average Slot Usage (%) 98 | . 100 100 100 88 Engine 13 | . 14 14 14 8 Treads 26 | . 28 28 28 17 Storage 14 | . 14 14 14 14 Processor 13 | . 8 14 14 14 Energy Gun 2 | . 28 . . . Ballistic Cannon 12 | . . 14 14 15 Launcher 11 | . . 13 14 6 Peak Build Rating 16 | 7 10 12 13 16 Average Rating 11 | 5 7 11 12 12 On Entrance 8 | . 7 10 12 13 Naked Turns . | . . . . . Heaviest Build 53 | 14 49 53 53 53 Greatest Support 40 | 40 40 40 40 40 Greatest Overweight (x) 4 | 3 1 1 1 4 Average Overweight (x) . | . . 1 1 1 Largest Inventory Capacity 20 | 8 20 20 20 20 Average Capacity 18 | 7 16 20 20 20 Most Carried 20 | 4 18 20 20 20 Average Carried 16 | 2 7 17 18 16 Final Capacity 20 | 8 20 20 20 20 Final Carried 20 | 4 18 18 20 14 Class Distribution -------------------- 100% | Mutant Dominant Class ---------------- Mutant | -10/Materials Mutant | -10/Mines Mutant | -10/Exiles Mutant | -9/Mines Resources | -11 -10 -10 -10 -9 ----------- Run | Yrd Mat Min Exi Min Matter Collected 676 | 312 . 207 44 113 Remotely . | . . . . . Salvage Created 489 | 161 . 204 44 80 Parts 32 | 9 . 13 4 6 Haulers Intercepted . | . . . . . Recyclers Shooed 1 | . . . . 1 Parts Field Recycled . | . . . . . Retrieved Matter . | . . . . . Parts Self-Destructed . | . . . . . Prevented . | . . . . . Kills | -11 -10 -10 -10 -9 ------- Run | Yrd Mat Min Exi Min Combat Hostiles Destroyed 22 | . . 7 . 15 Melee 1 | . . . . 1 Guns 1 | . . 1 . . Cannons 11 | . . 2 . 9 AOE 9 | . . 4 . 5 Classes Destroyed 7 | 3 . 1 . 3 Worker 2 | 1 . . . 1 Tunneler 2 | 2 . . . . Recycler 1 | 1 . . . . Swarmer 1 | . . . . 1 Grunt 7 | . . 7 . . Demolisher 2 | . . . . 2 Assembled 12 | . . . . 12 Best Kill Streak 11 | 3 . 2 . 11 Combat Bots Only 10 | . . 2 . 10 Max Kills in Single Turn 3 | 1 . 1 . 3 Gunslinging . | . . . . . Exploded 2 | . . 1 . 2 Melee 1 | . . . . 1 Uniques/NPCs Destroyed . | . . . . . Combat | -11 -10 -10 -10 -9 -------- Run | Yrd Mat Min Exi Min Hostile Shots Fired 88 | . 11 24 . 53 Missed 28 | . 4 12 . 12 Hits 60 | . 7 12 . 41 Melee 5 | . . . . 5 Projectile 55 | . 7 12 . 36 AOE 16 | . . . . 16 Damage Taken 1368 | . 52 237 . 1079 Core 254 | . 9 27 . 218 Absorbed by Shields . | . . . . . Core Remaining (%) 100 | 100 . . . . Volleys Fired 61 | 12 . 15 1 33 Largest 2 | 2 . 2 1 2 Hottest 90 | 90 . 83 33 66 Shots Fired 94 | 24 . 25 1 44 Gun 29 | 24 . 5 . . Cannon 41 | . . 10 1 30 Launcher 24 | . . 10 . 14 Special . | . . . . . Kinetic 41 | . . 10 1 30 Thermal 29 | 24 . 5 . . Explosive 24 | . . 10 . 14 Electromagnetic . | . . . . . Robot Hit Streak 13 | 13 . 9 1 6 Robot Miss Streak 4 | 3 . 2 . 4 Penetration Max . | . . . . . Secondary Targets . | . . . . . Shots Hit Robots 55 | 16 . 15 1 23 Core Hits 50 | 5 . 12 1 32 Critical Kills . | . . . . . Critical Parts Destroyed . | . . . . . Critical Strikes 1 | . . . . 1 Blast 1 | . . . . 1 Melee Attacks 1 | . . . . 1 Impact 1 | . . . . 1 Slashing . | . . . . . Piercing . | . . . . . Sneak Attacks . | . . . . . Combat Hostiles . | . . . . . Follow-up Attacks . | . . . . . Damage Inflicted 1645 | 197 . 541 25 882 Guns 246 | 197 . 49 . . Cannons 495 | . . 143 25 327 Explosions 829 | . . 340 . 489 Melee 66 | . . . . 66 Ramming 9 | . . 9 . . Kinetic 495 | . . 143 25 327 Thermal 246 | 197 . 49 . . Explosive 829 | . . 340 . 489 Electromagnetic . | . . . . . Impact 66 | . . . . 66 Slashing . | . . . . . Piercing . | . . . . . Highest Corruption 1 | . 1 1 1 1 Average Corruption 1 | . 1 1 1 1 Corruption Purged . | . . . . . Corruption Blocked . | . . . . . Effects 24 | . . 9 12 3 Message Errors 4 | . . 2 1 1 Matter Fused 7 | . . 3 3 1 Heat Flow Errors 4 | . . 1 2 1 Energy Discharges 4 | . . 1 3 . Data Loss (minor) 3 | . . 1 2 . Data Loss (major) 1 | . . . 1 . Alerts 1 | . . 1 . . Overload Shots . | . . . . . Overflow Damage 25 | . . 13 . 12 Projectiles 12 | . . . . 12 Explosions 13 | . . 13 . . Melee . | . . . . . Knockbacks 6 | . . 1 . 5 Impact . | . . . . . Kinetic 5 | . . 1 . 4 Secondary 1 | . . . . 1 Self-Inflicted Damage 121 | . . 84 . 37 Shots 4 | . . 3 . 1 Rammed 1 | . . 1 . . Targets Rammed 1 | . . 1 . . Kicked . | . . . . . Crushed . | . . . . . Highest Temperature 255 | 180 . 156 255 187 Average Temperature 68 | 70 . 55 126 43 Received Heat Transfer 127 | . . 87 . 40 Siege Activations . | . . . . . Martial Activations . | . . . . . Shielding Activations . | . . . . . Robots Disrupted . | . . . . . Combat Hostiles . | . . . . . Robots Corrupted . | . . . . . Combat Hostiles . | . . . . . Parts Fried . | . . . . . Impact Corruptions . | . . . . . Robots Melted . | . . . . . Combat Hostiles . | . . . . . Parts Melted 3 | 2 . 1 . . Heat Transferred 669 | 521 . 148 . . Parts Sabotaged . | . . . . . Parts Stolen . | . . . . . Parts Stripped . | . . . . . Power Chain Reactions . | . . . . . Alert | -11 -10 -10 -10 -9 ------- Run | Yrd Mat Min Exi Min Maximum Alert Level . | . . . . . Low Security (%) 100 | 100 100 100 . 100 Level 1 . | . . . . . Level 2 . | . . . . . Level 3 . | . . . . . Level 4 . | . . . . . Level 5 . | . . . . . High Security . | . . . . . Max Security . | . . . . . Peak Influence 71 | 10 7 71 . 41 Initial . | . . . . . Average 9 | . . 14 . 5 Influence Increases 408 | 20 12 250 5 121 Destroy 0b10 Robot/C 200 | . . 140 . 60 Destroy 0b10 Robot/NC 30 | 20 . . 5 5 Destroy Leader 50 | . . 40 . 10 Allied During Kill 3 | . . 3 . . Successful Hack 12 | . 12 . . . Destroy Structure 113 | . . 67 . 46 Influence Decreases 388 | 20 12 219 36 101 Entered New Map 31 | . . . 31 . Time Decay 299 | 20 12 219 5 43 Lost Part 58 | . . . . 58 Squads Dispatched 1 | . . . . 1 Investigation . | . . . . . Extermination . | . . . . . Reinforcement 1 | . . . . 1 Assault . | . . . . . Garrison . | . . . . . Intercept . | . . . . . Searches Triggered . | . . . . . Construction Impeded 1 | . . . . 1 Haulers Reinforced . | . . . . . Active Scanning Responses . | . . . . . Cargo Convoy Interrupts . | . . . . . Stealth | -11 -10 -10 -10 -9 --------- Run | Yrd Mat Min Exi Min Distress Signals 1 | . 1 . . . Communications Jammed . | . . . . . Distress Signals . | . . . . . Times Spotted 34 | . 5 9 . 20 Peak Tracking Total 6 | . 6 2 . 6 Tactical Retreats . | . . . . . Traps | -11 -10 -10 -10 -9 ------- Run | Yrd Mat Min Exi Min Traps Triggered 1 | . 1 . . . Indirectly . | . . . . . Trap Hack Attempts . | . . . . . Triggered . | . . . . . Disarmed . | . . . . . Reprogrammed . | . . . . . Reused . | . . . . . Traps Extracted . | . . . . . Installed . | . . . . . Triggered . | . . . . . Machines | -11 -10 -10 -10 -9 ---------- Run | Yrd Mat Min Exi Min Machines Disabled . | . . . . . Max in Single Turn . | . . . . . Machines Repaired . | . . . . . Machines Dismantled . | . . . . . Machines Sabotaged . | . . . . . Overloaded Fab Kills . | . . . . . Hacking | -11 -10 -10 -10 -9 --------- Run | Yrd Mat Min Exi Min Machines Accessed 4 | . 2 . 2 . Terminals 2 | . 2 . . . Fabricators . | . . . . . Repair Stations . | . . . . . Recycling Units . | . . . . . Scanalyzers . | . . . . . Garrison Access . | . . . . . Total Hacks 8 | . 6 . 2 . Successful 5 | . 3 . 2 . Failed 3 | . 3 . . . Catastrophic 1 | . 1 . . . Database Lockouts . | . . . . . Manual 4 | . 3 . 1 . Terminals 6 | . 6 . . . Fabricators . | . . . . . Repair Stations . | . . . . . Recycling Units . | . . . . . Scanalyzers . | . . . . . Garrison Access . | . . . . . Terminal Hacks 5 | . 3 . 2 . Record 2 | . . . 2 . Alert Level 1 | . 1 . . . Unreport Threat 1 | . 1 . . . Zone Layout 1 | . 1 . . . Fabricator Hacks . | . . . . . Repair Station Hacks . | . . . . . Recycling Unit Hacks . | . . . . . Scanalyzer . | . . . . . Garrison Access Hacks . | . . . . . Unauthorized Hacks . | . . . . . Terminals . | . . . . . Fabricators . | . . . . . Repair Stations . | . . . . . Recycling Units . | . . . . . Scanalyzers . | . . . . . Garrison Access . | . . . . . Data Cores Recovered . | . . . . . Used . | . . . . . Hacking Detections 2 | . 2 . . . Full Trace Events . | . . . . . Feedback Events . | . . . . . Feedback Blocked . | . . . . . Robot Schematics Acquired . | . . . . . Robots Built . | . . . . . Authchips . | . . . . . Time . | . . . . . Total Robot Build Rating . | . . . . . Part Schematics Acquired . | . . . . . Parts Built . | . . . . . Authchips . | . . . . . Time . | . . . . . Total Part Build Rating . | . . . . . Parts Repaired . | . . . . . Time . | . . . . . Parts Recycled . | . . . . . Recycled Matter . | . . . . . Retrieved Matter . | . . . . . Retrieved Components . | . . . . . Parts Scanalyzed . | . . . . . Part Schematics Acquired . | . . . . . Parts Damaged . | . . . . . Bothacking | -11 -10 -10 -10 -9 ------------ Run | Yrd Mat Min Exi Min Used RIF Installer . | . . . . . Robots Hacked . | . . . . . Non-combat . | . . . . . Combat . | . . . . . Robot Hacks Applied . | . . . . . Relay Couplers Released . | . . . . . Fabnet Peak Effective % . | . . . . . Robots Rewired 3 | . . . 3 . Allies Hacked . | . . . . . Hacks Repelled . | . . . . . Allies | -11 -10 -10 -10 -9 -------- Run | Yrd Mat Min Exi Min Total Allies 4 | . . 1 3 . Largest Group 3 | . . 1 3 3 Highest-Rated Group 31 | . . 31 31 24 Highest-Rated Ally 31 | . . 31 31 8 Total Orders . | . . . . . Ally Attacks 8 | . . 5 . 3 Total Damage 64 | . . 42 . 22 Kills . | . . . . . Allies Corrupted . | . . . . . Allies Melted . | . . . . . Intel | -11 -10 -10 -10 -9 ------- Run | Yrd Mat Min Exi Min Active Infowar (turns) 213 | 105 108 . . . Seismic 213 | 105 108 . . . Robot Analysis Total . | . . . . . Derelict Logs Recovered 1 | . . 1 . . Drone Launches . | . . . . . Drone Recoveries . | . . . . . Exploration | -11 -10 -10 -10 -9 ------------- Run | Yrd Mat Min Exi Min Turns Passed 3911 | 241 311 1338 1686 335 Spaces Moved 1623 | 123 143 535 696 126 Core 16 | 16 . . . . Treads 1552 | 107 143 535 696 71 Legs . | . . . . . Wheels 55 | . . . . 55 Hover . | . . . . . Flight . | . . . . . Fastest Speed 50 | 50 160 240 240 110 Average Speed 226 | 155 205 240 240 191 Slowest Speed 320 | 200 240 240 240 320 Overloaded Moves . | . . . . . Propulsion Burnouts . | . . . . . Robots Hopped . | . . . . . Potential Cave-ins . | . . . . . Cave-ins Triggered . | . . . . . Exploration Rate (%) 49 | 5 20 96 91 33 Regions Visited 4 Branch Regions 3 Pre-discovered Areas 1 | . . 1 . . Known Exits Taken 3 | . 1 1 1 . Unknown Exits Taken 1 | 1 . . . . Scrap Searched 3 | . . 3 . . Spaces Dug . | . . . . . Terrain Destroyed 188 | . . 86 . 102 Melee . | . . . . . Projectile 7 | . . . . 7 AOE 181 | . . 86 . 95 Terrain Rammed . | . . . . . Walls Destroyed . | . . . . . Machines Disabled . | . . . . . Actions | -11 -10 -10 -10 -9 --------- Run | Yrd Mat Min Exi Min Total 1757 | 145 161 565 712 174 Wait 1 | . . 1 . . Move 1619 | 122 142 534 695 126 Hop . | . . . . . Pick Up 29 | 4 15 5 4 1 Fast Attach 9 | 7 . . . 2 Attach 9 | . . 1 . 8 Detach 1 | . . . . 1 Swap 8 | . 2 3 1 2 Drop 9 | . 2 5 2 . Fire 61 | 12 . 15 1 33 Melee 1 | . . . . 1 Ram . | . . . . . Kick . | . . . . . Crush 1 | . . 1 . . Escape Stasis . | . . . . . Rewire 9 | . . . 9 . Trap . | . . . . . Miscellaneous . | . . . . . Route ------- -11/Scrapyard -10/Materials -10/Mines (discovered 3 exits: *Mat x2 / *Exi) -10/Exiles (discovered 2 exits: *Min x2) -9/Mines History --------- Turn | Location | Event 19 | -11/Scrapyard | Discovered new exit (range 16) 242 | -11/Scrapyard | Entered Materials 300 | -10/Materials | Build established: Mutant 438 | -10/Materials | Discovered new exit (range 14) 532 | -10/Materials | Identified exit to Mines 553 | -10/Materials | Entered Mines 1192 | -10/Mines | Discovered new exit (range 5) 1201 | -10/Mines | Escorted by a lone wolf Derelict 1207 | -10/Mines | Identified exit to Materials 1221 | -10/Mines | Learned location of Storage (-9) 1661 | -10/Mines | Learned 4 Materials zone layouts 1750 | -10/Mines | Discovered exit to Materials (range 10) 1875 | -10/Mines | Deemed a non-threat by the Exiles lab entrance 1877 | -10/Mines | Discovered new exit (range 5) 1887 | -10/Mines | Identified exit to Exiles 1891 | -10/Mines | Entered Exiles 1891 | -10/Exiles | Found Exiles lab destroyed 1891 | -10/Exiles | Accompanied by 1 ally 1937 | -10/Exiles | Discovered new exit (range 14) 1975 | -10/Exiles | Identified exit to Mines 3543 | -10/Exiles | Discovered exit to Mines (range 14) 3577 | -10/Exiles | Entered Mines 3577 | -9/Mines | Accompanied by 3 allies 3705 | -9/Mines | Assembled infested the area 3706 | -9/Mines | Found a damaged Exp. Sensor Array with a note attached 3710 | -9/Mines | Assisted by a Guerilla fighting off Assembled 3738 | -9/Mines | Core integrity fell below 50% 3755 | -9/Mines | Lost 3 allies 3773 | -9/Mines | Lost 7 parts (1p2n4w) 3803 | -9/Mines | Core integrity fell below 20% 3856 | -9/Mines | Destroyed 10 combat bots 3912 | -9/Mines | Destroyed by S-10 Pest with Light Assault Rifle Last Messages --------------- 03877_ K-01 Serf collects debris. 03878_ U-05 Engineer builds a Wall. 03880_ K-01 Serf collects debris. 03881_ Acquired 6 matter. 03882_ Acquired 1 matter. 03883_ U-05 Engineer lays Concrete. 03884_ K-01 Serf collects debris. 03885_ U-05 Engineer builds a Wall. 03887_ K-01 Serf collects debris. 03887_ Acquired 9 matter. 03888_ K-01 Serf collects debris. 03889_ U-05 Engineer lays Concrete. 03890_ Acquired Lgt. Ion Engine. 03890_ U-05 Engineer lays Concrete. 03891_ The unstable cave ceiling collapses. 03891_ U-05 Engineer builds a Wall. 03893_ U-05 Engineer lays Concrete. 03895_ K-01 Serf collects debris. 03910_ T-07 Excavator is excavating. 03911_ S-10 Pest destroyed. Map ----- +----------------------------------------------------+ | ##### ### ## #### #????????????????? | | ## ##???????????????? | | #### # #???????????????? | | ### #??# # # ##???????????????? | | ??####??# # #???????????????? | | ????????# ## ######## # #???????????????? | | ????????# ## # # # ## #???????????????? | | ??????### # #"= #?? ???????????????? | | ?????## ## ## ##?##??????????????? | | ?????# # ####### #?????????????????? | | ?????# ######????# #?????????????????? | | ?????## ##????????## ##?????????????????? | | ??????# ##?????????# ##??????????????????? | | ??????## #??????????# ##???????????????????? | | ???????## ##??????????## ###????????????????????? | | ????????####????????????# #??????????????????????? | | ????????????????????????# #??????????????????????? | | ????????????????????????# #??????????????????????? | | ???????????????????????## ###????????????????????? | | ??????????????????????## ##???????????????????? | | ??????????????????????# #???????????????????? | | ??????????????????????# #???????????????????? | | ??????????????????????## #???????????????????? | | ???????????????????????# # #???????????????????? | | ???????????????????##### ####???????????????????? | | ???????????????????# @#??????????????????????? | | ???????????????# s#??????????????????????? | | ???????????????# ### ### ??????????????????????? | | ???????????????????# ?? =%??????????????????????? | | ???????????????????# ??? = ?????????????????????? | | ???????????????????#???? s?????????????????????? | | ???????????????????????? ????????????????????? | | ???????????????????????# ????????????????????? | | ???????????????????????#### ???????????????????? | | ???????????????????????????# ???????????????????? | | ????????????????????????????# ??????????????????? | | ?????????????????????????????# ??????????????????? | | ?????????????????????????????? ?????????????????? | | ???????????????????????????????t?????????????????? | | ?????????????????????????????????????????????????? | | ?????????????????????????????????????????????????? | | ?????????????????????????????????????????????????? | | ?????????????????????????????????????????????????? | | ?????????????????????????????????????????????????? | | ?????????????????????????????????????????????????? | | ?????????????????????????????????????????????????? | | ?????????????????????????????????????????????????? | | ?????????????????????????????????????????????????? | | ?????????????????????????????????????????????????? | | ?????????????????????????????????????????????????? | +----------------------------------------------------+ Best States ------------- Heat Dissipation 25 Energy Generation 14 Energy Capacity 250 Matter Stores 300 Matter Capacity 300 Sight Range 16 Terrain Scan Density 10 Evasion (%) 40 Recoil Reduction 2 Item Schematics ----------------- None Robot Schematics ------------------ None Fabricated ------------ Nothing Repaired ---------- Nothing Alien Tech Used ----------------- None Achievements -------------- A New Friend Challenges ------------ None Game ------ Seed SurveybotFlightBlasthammer Manual? 0 Play Time 00:22:10 Cumulative 12.5 hours Start 2025.05.17 @ 20:48:11 End 2025.05.17 @ 21:09:46 Sessions 1 Manual Loads 0 Difficulty Rogue Special Mode None Game No. 17 Rogue 17 Adventurer 0 Explorer 0 Win Type - Total 0 Types 0/0/0/0/0/0/0/0/0/0 Lore% 11 Gallery% 13 Achievement% 13 Wizard Run 0 Options --------- Layout 1 ASCII 0 Keyboard 1 Movement Vi Keybinds 0 Fullscreen 1 Font 24/Smallcaps Map View 50x35 Zoom Use 0% Tactical HUD 1 Map Filters NONE Filters NONE Steam 1 RUN: 97991b27-d69e-4a55-b271-ea36d6118844